[Event "Cracovia Festival-A 2023"]
[Site "Krakow"]
[Date "2024.01.04"]
[Round "9.13"]
[White "Jaskolka, Tomasz"]
[Black "Suder, Jakub"]
[Result "0-1"]
[ECO "D21"]
[WhiteElo "2222"]
[BlackElo "2312"]
[Annotator "RC"]
[PlyCount "108"]
[EventDate "2023.12.24"]
[EventType "swiss"]
[EventCountry "POL"]
[SourceTitle "playchess.com"]
[Source "ChessBase"]
[SourceQuality "1"]
[TimeControl "40/5400+30:1800+30"]

1. d4 {[%emt 0:00:02]} d5 {[%emt 0:11:29]} 2. c4 {[%emt 0:00:20]} dxc4 {[%emt 0:00:59]} 3. Nf3 {[%emt 0:00:05]} a6 {[%emt 0:00:03]} 4. e3 {[%emt 0:00:17]} Bg4 {[%emt 0:00:07]} 5. Bxc4 {[%emt 0:00:18]} e6 {[%emt 0:00:07]} 6. h3 {[%emt 0:00:31]} Bh5 {[%emt 0:00:08]} 7. Nc3 {[%emt 0:00:27]} Nf6 {[%emt 0:00:19]} 8. O-O {[%emt 0:00:11]} Nc6 {[%emt 0:00:10]} 9. Re1 {[%emt 0:00:32]} Be7 {[%emt 0:03:03]} 10. g4 {[%emt 0:05:31]} Bg6 {[%emt 0:00:35]} 11. e4 {[%emt 0:00:56]} O-O {[%emt 0:07:51]} 12. Bb3 {[%emt 0:21:30]} h6 {[%emt 0:05:54]} 13. a3 {[%emt 0:03:49]} Bh7 {[%emt 0:01:30]} 14. Bc2 {[%emt 0:05:12]} Re8 {[%emt 0:04:44]} 15. Be3 {[%emt 0:01:16]} Bf8 {[%emt 0:07:46]} 16. Qd2 {[%emt 0:12:27]} Nd7 {[%emt 0:05:34]} 17. Rad1 {[%emt 0:01:18]} e5 {[%emt 0:06:21]} 18. d5 {[%emt 0:13:11]} Na5 {[%emt 0:02:36]} 19. Qe2 {[%emt 0:00:05]} b5 {[%emt 0:01:02]} 20. g5 {[%emt 0:01:06]} Nc4 {[%emt 0:02:36]} 21. gxh6 {[%emt 0:01:29]} Nxe3 {[%emt 0:05:58]} 22. Qxe3 {[%emt 0:02:22]} Bc5 {[%emt 0:03:13]} 23. Qc1 {[%emt 0:05:31]} Qf6 {[%emt 0:01:01]} 24. Rd3 {[%emt 0:00:05]} gxh6 {[%emt 0:01:39]} 25. Kh2 {[%emt 0:02:34]} Kh8 {[%emt 0:03:04]} 26. b4 {[%emt 0:03:19]} Bd6 {[%emt 0:02:24]} 27. Rg1 {[%emt 0:01:40]} Rg8 {[%emt 0:00:18]} 28. Rg3 {[%emt 0:00:27]} Rae8 {[%emt 0:07:51]} 29. Kg2 {[%emt 0:01:31]} Rg7 {[%emt 0:01:58]} 30. Nh2 {[%emt 0:01:55]} Qf4 {[%emt 0:03:47]} 31. Qe1 {[%emt 0:00:16]} Qh4 {[%emt 0:01:09]} 32. Rxg7 {[%emt 0:05:22]} Kxg7 {[%emt 0:00:08]} 33. Rg3+ {[%emt 0:00:02]} Kh8 {[%emt 0:00:28]} 34. f3 {[%emt 0:00:40]} f5 {[%emt 0:02:36]} 35. Kf1 {[%emt 0:02:15]} Qh5 {[%emt 0:01:11]} 36. Kg2 {[%emt 0:05:02]} Nf6 {[%emt 0:02:39]} 37. Qf2 {[%emt 0:02:08]} f4 {[%emt 0:00:59]} 38. Rg4 {[%emt 0:00:07]} Nxg4 {[%emt 0:00:50]} 39. hxg4 {[%emt 0:00:03]} Qg5 {[%emt 0:01:23]} 40. Kf1 {[%emt 0:00:00]} Bg6 {[%emt 0:00:00]} 41. Nd1 Ra8 {[%emt 0:04:04]} 42. Qe1 {[%emt 0:18:59]} Be8 {[%emt 0:01:03]} 43. Bb3 {[%emt 0:00:29]} Bd7 {[%emt 0:00:19]} 44. Kg2 {[%emt 0:01:03]} h5 {[%emt 0:00:41]} 45. Nf2 {[%emt 0:00:28]} Qh4 {[%emt 0:00:23]} 46. Nd3 {[%emt 0:00:32]} Qxe1 {[%emt 0:00:30]} 47. Nxe1 {[%emt 0:00:03]} hxg4 {[%emt 0:00:06]} 48. Nxg4 {[%emt 0:00:21]} Bxg4 {[%emt 0:00:53]} 49. fxg4 {[%emt 0:00:03]} a5 {[%emt 0:00:05]} 50. Nc2 {[%emt 0:00:16]} Kg7 {[%emt 0:00:18]} 51. Kf3 {[%emt 0:00:16]} Kf6 {[%emt 0:00:15]} 52. Kg2 {[%emt 0:00:10]} Kg5 {[%emt 0:00:05]} 53. Kf3 {[%emt 0:00:03]} axb4 {[%emt 0:00:24]} 54. axb4 {[%emt 0:00:05]} Rh8 {[%emt 0:00:08]} 0-1

[Event "Cracovia Festival-A 2023"]
[Site "Krakow"]
[Date "2024.01.04"]
[Round "9.14"]
[White "Anwesh, Upadhyaya"]
[Black "Dziewonski, Dariusz"]
[Result "1/2-1/2"]
[ECO "B33"]
[WhiteElo "2350"]
[BlackElo "2224"]
[Annotator "RC"]
[PlyCount "70"]
[EventDate "2023.12.24"]
[EventType "swiss"]
[EventCountry "POL"]
[SourceTitle "playchess.com"]
[Source "ChessBase"]
[SourceQuality "1"]
[TimeControl "40/5400+30:1800+30"]

1. e4 {[%emt 0:18:22]} c5 {[%emt 0:00:05]} 2. Nc3 {[%emt 0:00:19]} e6 {[%emt 0:02:53]} 3. Nge2 {[%emt 0:00:04]} Nc6 {[%emt 0:01:08]} 4. d4 {[%emt 0:00:31]} cxd4 {[%emt 0:00:16]} 5. Nxd4 {[%emt 0:00:04]} Nf6 {[%emt 0:00:10]} 6. Ndb5 {[%emt 0:00:56]} d6 {[%emt 0:00:13]} 7. Bf4 {[%emt 0:00:26]} e5 {[%emt 0:00:06]} 8. Bg5 {[%emt 0:00:03]} a6 {[%emt 0:00:06]} 9. Na3 {[%emt 0:00:03]} b5 {[%emt 0:00:07]} 10. Bxf6 {[%emt 0:00:42]} gxf6 {[%emt 0:00:07]} 11. Nd5 {[%emt 0:00:03]} Bg7 {[%emt 0:01:13]} 12. c3 {[%emt 0:00:06]} f5 {[%emt 0:01:10]} 13. exf5 {[%emt 0:00:04]} Bxf5 {[%emt 0:05:20]} 14. Nc2 {[%emt 0:00:05]} O-O {[%emt 0:04:01]} 15. Nce3 {[%emt 0:00:02]} Be6 {[%emt 0:04:02]} 16. Bd3 {[%emt 0:00:04]} Ne7 {[%emt 0:11:03]} 17. Nxe7+ {[%emt 0:04:26]} Qxe7 {[%emt 0:00:06]} 18. Qh5 {[%emt 0:00:17]} h6 {[%emt 0:01:55]} 19. Nf5 {[%emt 0:06:58]} Bxf5 {[%emt 0:09:50]} 20. Qxf5 {[%emt 0:00:17]} e4 {[%emt 0:00:05]} 21. Bxe4 {[%emt 0:09:48]} Rfe8 {[%emt 0:00:15]} 22. f3 {[%emt 0:01:16]} d5 {[%emt 0:01:56]} 23. Qxd5 {[%emt 0:00:34]} Rad8 {[%emt 0:00:31]} 24. Qf5 {[%emt 0:02:54]} Qa7 {[%emt 0:01:01]} 25. Ke2 {[%emt 0:04:37]} Re5 {[%emt 0:05:27]} 26. Qh7+ {[%emt 0:01:27]} Kf8 {[%emt 0:02:12]} 27. Rhd1 {[%emt 0:02:36]} Rde8 {[%emt 0:04:41]} 28. Kf1 {[%emt 0:10:19]} Qc7 {[%emt 0:10:14]} 29. Rd3 {[%emt 0:10:47]} Rh5 {[%emt 0:09:32]} 30. Rad1 {[%emt 0:04:46]} Rxh2 {[%emt 0:03:29]} 31. Rd7 {[%emt 0:06:45]} Qg3 {[%emt 0:06:45]} 32. Rxf7+ {[%emt 0:08:55]} Kxf7 {[%emt 0:00:04]} 33. Qf5+ {[%emt 0:00:32]} Kg8 {[%emt 0:05:41]} 34. Qh7+ {[%emt 0:00:12]} Kf7 {[%emt 0:01:50]} 35. Qf5+ {[%emt 0:00:42]} Kg8 {[%emt 0:02:25]} 1/2-1/2

[Event "Cracovia Festival-A 2023"]
[Site "Krakow"]
[Date "2024.01.04"]
[Round "9.15"]
[White "Piekielny, Pawel"]
[Black "Sieciechowicz, Marcin"]
[Result "0-1"]
[ECO "B50"]
[WhiteElo "2250"]
[BlackElo "2391"]
[Annotator "RC"]
[PlyCount "88"]
[EventDate "2023.12.24"]
[EventType "swiss"]
[EventCountry "POL"]
[SourceTitle "playchess.com"]
[Source "ChessBase"]
[SourceQuality "1"]
[TimeControl "40/5400+30:1800+30"]

1. e4 {[%emt 0:00:02]} c5 {[%emt 0:01:42]} 2. Nf3 {[%emt 0:00:09]} d6 {[%emt 0:00:09]} 3. c3 {[%emt 0:00:04]} Nf6 {[%emt 0:00:23]} 4. Be2 {[%emt 0:00:04]} g6 {[%emt 0:00:26]} 5. O-O {[%emt 0:00:05]} Bg7 {[%emt 0:00:06]} 6. Bb5+ {[%emt 0:00:04]} Nc6 {[%emt 0:00:16]} 7. d4 {[%emt 0:07:43]} O-O {[%emt 0:00:22]} 8. Re1 {[%emt 0:08:24]} cxd4 {[%emt 0:02:22]} 9. cxd4 {[%emt 0:00:04]} Bg4 {[%emt 0:00:20]} 10. Bxc6 {[%emt 0:06:05]} bxc6 {[%emt 0:00:25]} 11. Nc3 {[%emt 0:00:13]} Qb6 {[%emt 0:01:49]} 12. Na4 {[%emt 0:03:48]} Qb5 {[%emt 0:05:12]} 13. b3 {[%emt 0:04:50]} Nd7 {[%emt 0:02:53]} 14. Bb2 {[%emt 0:03:48]} Nb6 {[%emt 0:00:30]} 15. Nxb6 {[%emt 0:07:08]} axb6 {[%emt 0:00:11]} 16. a4 {[%emt 0:01:49]} Qh5 {[%emt 0:05:38]} 17. h3 {[%emt 0:00:36]} Be6 {[%emt 0:04:30]} 18. Rc1 {[%emt 0:03:01]} c5 {[%emt 0:05:52]} 19. Bc3 {[%emt 0:06:40]} Rad8 {[%emt 0:06:12]} 20. d5 {[%emt 0:00:56]} Bc8 {[%emt 0:02:09]} 21. Bxg7 {[%emt 0:05:49]} Kxg7 {[%emt 0:00:02]} 22. Nd2 {[%emt 0:01:19]} Qxd1 {[%emt 0:00:47]} 23. Rcxd1 {[%emt 0:00:57]} Ba6 {[%emt 0:00:41]} 24. e5 {[%emt 0:05:13]} dxe5 {[%emt 0:02:06]} 25. Rxe5 {[%emt 0:00:05]} Rd7 {[%emt 0:03:02]} 26. a5 {[%emt 0:08:49]} bxa5 {[%emt 0:06:31]} 27. Ne4 Rc8 {[%emt 0:01:59]} 28. d6 {[%emt 0:06:23]} exd6 {[%emt 0:05:56]} 29. Rxd6 {[%emt 0:00:40]} Rxd6 {[%emt 0:01:02]} 30. Nxd6 {[%emt 0:00:05]} Rd8 {[%emt 0:00:38]} 31. Ne8+ {[%emt 0:02:15]} Kf8 {[%emt 0:00:32]} 32. Nf6 {[%emt 0:01:35]} Rd6 {[%emt 0:02:44]} 33. Re8+ {[%emt 0:06:36]} Kg7 34. Ne4 {[%emt 0:00:03]} Rd1+ {[%emt 0:01:51]} 35. Kh2 {[%emt 0:00:04]} Re1 {[%emt 0:01:20]} 36. f3 {[%emt 0:00:28]} Bf1 {[%emt 0:13:58]} 37. Ra8 {[%emt 0:07:09]} Re2 {[%emt 0:01:16]} 38. Kg3 {[%emt 0:00:33]} Rxg2+ {[%emt 0:01:59]} 39. Kf4 {[%emt 0:00:05]} Rb2 {[%emt 0:03:35]} 40. h4 {[%emt 0:00:00]} Rxb3 {[%emt 0:00:00]} 41. Nxc5 {[%emt 0:06:09]} Rb5 {[%emt 0:03:19]} 42. Ne4 {[%emt 0:00:17]} Rf5+ {[%emt 0:01:50]} 43. Ke3 {[%emt 0:01:18]} Bc4 {[%emt 0:02:37]} 44. Nd6 {[%emt 0:04:10]} Rxf3+ {[%emt 0:00:37]} 0-1

[Event "Cracovia Festival-A 2023"]
[Site "Krakow"]
[Date "2024.01.04"]
[Round "9.16"]
[White "Fodor, Balazs"]
[Black "Steindl, Johannes"]
[Result "1/2-1/2"]
[ECO "E46"]
[WhiteElo "2225"]
[BlackElo "2334"]
[Annotator "RC"]
[PlyCount "75"]
[EventDate "2023.12.24"]
[EventType "swiss"]
[EventCountry "POL"]
[SourceTitle "playchess.com"]
[Source "ChessBase"]
[SourceQuality "1"]
[TimeControl "40/5400+30:1800+30"]

1. d4 {[%emt 0:09:13]} Nf6 {[%emt 0:10:31]} 2. c4 {[%emt 0:00:17]} e6 {[%emt 0:00:05]} 3. Nc3 {[%emt 0:00:11]} Bb4 {[%emt 0:00:08]} 4. e3 {[%emt 0:00:11]} O-O {[%emt 0:00:17]} 5. Bd2 {[%emt 0:00:09]} b6 {[%emt 0:02:22]} 6. Nf3 {[%emt 0:00:45]} Bb7 {[%emt 0:00:16]} 7. Bd3 {[%emt 0:00:57]} c5 {[%emt 0:01:16]} 8. a3 {[%emt 0:00:13]} Bxc3 {[%emt 0:00:52]} 9. Bxc3 {[%emt 0:01:01]} cxd4 {[%emt 0:00:17]} 10. exd4 d5 {[%emt 0:00:05]} 11. b3 {[%emt 0:05:00]} a5 {[%emt 0:00:05]} 12. a4 {[%emt 0:02:37]} Nc6 {[%emt 0:05:22]} 13. O-O {[%emt 0:03:19]} Qe7 {[%emt 0:01:44]} 14. Rc1 {[%emt 0:05:58]} Rac8 {[%emt 0:01:47]} 15. Qe2 {[%emt 0:01:15]} Nb4 {[%emt 0:03:25]} 16. Ne5 {[%emt 0:08:25]} Rc7 {[%emt 0:05:09]} 17. Bb1 {[%emt 0:04:01]} Rfc8 {[%emt 0:00:55]} 18. Rfd1 {[%emt 0:00:27]} Ba6 {[%emt 0:05:21]} 19. Bb2 {[%emt 0:00:09]} Qe8 {[%emt 0:01:58]} 20. Ng4 {[%emt 0:09:53]} Nxg4 {[%emt 0:09:00]} 21. Qxg4 {[%emt 0:00:07]} dxc4 {[%emt 0:00:09]} 22. bxc4 {[%emt 0:06:20]} Rxc4 {[%emt 0:01:20]} 23. Rxc4 {[%emt 0:01:19]} Rxc4 {[%emt 0:00:36]} 24. Qh3 {[%emt 0:06:59]} Qxa4 {[%emt 0:04:34]} 25. Qxh7+ {[%emt 0:00:47]} Kf8 {[%emt 0:00:03]} 26. Re1 {[%emt 0:01:34]} Nd5 {[%emt 0:04:03]} 27. Bc1 {[%emt 0:05:46]} Qb4 {[%emt 0:30:38]} 28. Rf1 {[%emt 0:00:39]} Rxd4 {[%emt 0:05:58]} 29. Qh8+ {[%emt 0:01:44]} Ke7 {[%emt 0:00:04]} 30. Bg5+ {[%emt 0:00:09]} Nf6 {[%emt 0:03:54]} 31. Qxg7 {[%emt 0:00:50]} Bxf1 {[%emt 0:00:21]} 32. Bxf6+ {[%emt 0:02:37]} Kd6 {[%emt 0:01:15]} 33. Qf8+ {[%emt 0:01:52]} Kc6 {[%emt 0:01:10]} 34. Qc8+ {[%emt 0:03:28]} Kb5 {[%emt 0:00:11]} 35. Qe8+ {[%emt 0:00:13]} Ka6 {[%emt 0:00:39]} 36. Qa8+ {[%emt 0:00:27]} Kb5 {[%emt 0:00:03]} 37. Qe8+ {[%emt 0:00:06]} Ka6 {[%emt 0:01:49]} 38. Qa8+ {[%emt 0:00:06]} 1/2-1/2

[Event "Cracovia Festival-A 2023"]
[Site "Krakow"]
[Date "2024.01.04"]
[Round "9.17"]
[White "Sernecki, Franciszek"]
[Black "Ernst, Robert"]
[Result "1-0"]
[ECO "D10"]
[WhiteElo "2325"]
[BlackElo "2271"]
[Annotator "RC"]
[PlyCount "107"]
[EventDate "2023.12.24"]
[EventType "swiss"]
[EventCountry "POL"]
[SourceTitle "playchess.com"]
[Source "ChessBase"]
[SourceQuality "1"]
[TimeControl "40/5400+30:1800+30"]

1. d4 {[%emt 0:05:20]} d5 2. c4 {[%emt 0:01:07]} c6 {[%emt 0:00:27]} 3. Nc3 {[%emt 0:00:05]} Nf6 {[%emt 0:00:08]} 4. e3 {[%emt 0:00:04]} Bf5 {[%emt 0:00:08]} 5. cxd5 {[%emt 0:00:48]} cxd5 {[%emt 0:00:08]} 6. Qb3 {[%emt 0:00:07]} Nc6 {[%emt 0:00:05]} 7. Qxb7 {[%emt 0:00:25]} Bd7 {[%emt 0:00:07]} 8. Qb3 {[%emt 0:00:07]} Rb8 {[%emt 0:00:06]} 9. Qd1 {[%emt 0:00:05]} e5 {[%emt 0:00:08]} 10. Nf3 {[%emt 0:01:32]} Bd6 {[%emt 0:00:11]} 11. dxe5 {[%emt 0:02:37]} Nxe5 {[%emt 0:00:11]} 12. Nd4 {[%emt 0:04:14]} O-O {[%emt 0:01:09]} 13. Be2 {[%emt 0:05:18]} Qe7 {[%emt 0:00:39]} 14. O-O {[%emt 0:03:08]} Rfc8 {[%emt 0:00:07]} 15. Ndb5 {[%emt 0:08:06]} Neg4 {[%emt 0:21:09]} 16. h3 {[%emt 0:17:45]} Ne5 {[%emt 0:55:58]} 17. a3 {[%emt 0:14:03]} Ng6 {[%emt 0:03:50]} 18. Nxd6 {[%emt 0:09:22]} Qxd6 {[%emt 0:00:01]} 19. Qd4 {[%emt 0:00:54]} Ne7 {[%emt 0:01:56]} 20. Rd1 {[%emt 0:06:42]} Nc6 {[%emt 0:00:37]} 21. Qd3 {[%emt 0:01:38]} Be6 {[%emt 0:01:55]} 22. e4 {[%emt 0:04:45]} d4 {[%emt 0:00:55]} 23. Nb5 {[%emt 0:02:33]} Rxb5 {[%emt 0:00:53]} 24. Qxb5 {[%emt 0:00:05]} Nxe4 {[%emt 0:00:05]} 25. Bf3 {[%emt 0:02:11]} f5 {[%emt 0:01:11]} 26. Bxe4 {[%emt 0:07:35]} fxe4 {[%emt 0:00:02]} 27. b4 {[%emt 0:00:35]} Ne5 {[%emt 0:07:27]} 28. Bb2 {[%emt 0:01:38]} Nd3 {[%emt 0:00:16]} 29. Rxd3 {[%emt 0:00:25]} exd3 {[%emt 0:00:54]} 30. Qxd3 {[%emt 0:00:06]} a5 {[%emt 0:00:56]} 31. bxa5 {[%emt 0:00:57]} Ra8 {[%emt 0:00:00]} 32. Qxd4 {[%emt 0:01:32]} Qxd4 {[%emt 0:00:07]} 33. Bxd4 {[%emt 0:00:01]} Rxa5 {[%emt 0:00:02]} 34. Bc3 {[%emt 0:00:29]} Rg5 {[%emt 0:01:19]} 35. Kh2 {[%emt 0:00:47]} Rc5 {[%emt 0:01:17]} 36. Be1 {[%emt 0:00:24]} Kf7 {[%emt 0:00:54]} 37. a4 {[%emt 0:00:20]} Bc8 {[%emt 0:00:14]} 38. a5 {[%emt 0:00:21]} Rc6 {[%emt 0:00:10]} 39. Bd2 {[%emt 0:00:58]} g6 {[%emt 0:00:17]} 40. Be3 {[%emt 0:00:00]} Ke6 {[%emt 0:00:00]} 41. g4 {[%emt 0:03:52]} h5 {[%emt 0:11:33]} 42. gxh5 {[%emt 0:08:06]} gxh5 {[%emt 0:00:03]} 43. Rg1 {[%emt 0:05:50]} Ba6 {[%emt 0:00:22]} 44. Rg6+ {[%emt 0:05:43]} Kd7 {[%emt 0:00:02]} 45. Rxc6 {[%emt 0:04:26]} Kxc6 {[%emt 0:00:01]} 46. Kg3 {[%emt 0:00:04]} Kd7 {[%emt 0:02:27]} 47. Kf4 {[%emt 0:00:43]} Ke8 {[%emt 0:00:29]} 48. h4 {[%emt 0:01:11]} Kf7 {[%emt 0:00:37]} 49. Kg5 {[%emt 0:02:01]} Be2 {[%emt 0:00:07]} 50. f4 {[%emt 0:00:03]} Kg7 {[%emt 0:00:49]} 51. f5 {[%emt 0:00:10]} Kf7 {[%emt 0:00:34]} 52. f6 {[%emt 0:00:06]} Bf1 {[%emt 0:01:04]} 53. Bd4 {[%emt 0:00:03]} Be2 {[%emt 0:00:05]} 54. Bc3 {[%emt 0:00:03]} 1-0

[Event "Cracovia Festival-A 2023"]
[Site "Krakow"]
[Date "2024.01.04"]
[Round "9.18"]
[White "Eke, Salih"]
[Black "Ongut, Tamas Gunes"]
[Result "1/2-1/2"]
[ECO "D30"]
[WhiteElo "2217"]
[BlackElo "2313"]
[Annotator "RC"]
[PlyCount "107"]
[EventDate "2023.12.24"]
[EventType "swiss"]
[EventCountry "POL"]
[SourceTitle "playchess.com"]
[Source "ChessBase"]
[SourceQuality "1"]
[TimeControl "40/5400+30:1800+30"]

1. d4 {[%emt 0:05:24]} d5 {[%emt 0:09:11]} 2. c4 {[%emt 0:00:09]} e6 {[%emt 0:00:06]} 3. Nf3 {[%emt 0:00:04]} c6 {[%emt 0:00:06]} 4. e3 {[%emt 0:02:13]} f5 {[%emt 0:00:10]} 5. Nc3 {[%emt 0:00:54]} Nd7 {[%emt 0:00:11]} 6. Be2 {[%emt 0:00:23]} Nh6 {[%emt 0:00:47]} 7. O-O {[%emt 0:00:46]} Bd6 {[%emt 0:00:11]} 8. Ne1 {[%emt 0:08:58]} g5 {[%emt 0:00:31]} 9. f4 {[%emt 0:00:55]} g4 {[%emt 0:03:42]} 10. Nd3 {[%emt 0:01:43]} Nf7 {[%emt 0:12:43]} 11. Ne5 {[%emt 0:06:23]} Ndxe5 {[%emt 0:00:22]} 12. fxe5 {[%emt 0:01:11]} Be7 {[%emt 0:02:42]} 13. Bd3 {[%emt 0:05:02]} Ng5 {[%emt 0:02:15]} 14. Ne2 {[%emt 0:00:31]} O-O {[%emt 0:11:10]} 15. Nf4 {[%emt 0:02:23]} b5 {[%emt 0:00:11]} 16. cxb5 {[%emt 0:05:13]} cxb5 {[%emt 0:00:08]} 17. Bd2 {[%emt 0:05:19]} b4 {[%emt 0:06:36]} 18. a3 {[%emt 0:07:41]} bxa3 {[%emt 0:01:00]} 19. bxa3 {[%emt 0:00:06]} a5 {[%emt 0:00:04]} 20. Qe2 {[%emt 0:00:06]} Kh8 {[%emt 0:07:54]} 21. Rfc1 {[%emt 0:04:05]} Rg8 {[%emt 0:00:20]} 22. Kh1 {[%emt 0:01:02]} Ne4 {[%emt 0:03:03]} 23. Bxe4 {[%emt 0:01:39]} fxe4 {[%emt 0:00:35]} 24. Be1 {[%emt 0:01:31]} Ba6 {[%emt 0:04:47]} 25. Qd2 {[%emt 0:00:49]} Qd7 {[%emt 0:00:07]} 26. Bg3 {[%emt 0:01:24]} Rgc8 {[%emt 0:06:34]} 27. Rxc8+ {[%emt 0:02:30]} Qxc8 {[%emt 0:07:04]} 28. Nh5 {[%emt 0:01:05]} Rb8 {[%emt 0:07:19]} 29. Qf2 {[%emt 0:07:21]} Qf8 {[%emt 0:04:36]} 30. Nf6 {[%emt 0:01:57]} Bxa3 {[%emt 0:02:08]} 31. Bf4 {[%emt 0:01:13]} Qg7 {[%emt 0:01:24]} 32. Qh4 {[%emt 0:02:59]} Be7 {[%emt 0:00:25]} 33. h3 {[%emt 0:01:04]} g3 {[%emt 0:01:53]} 34. Bxg3 {[%emt 0:01:53]} Rg8 {[%emt 0:01:54]} 35. Kh2 {[%emt 0:00:45]} Bd8 {[%emt 0:01:26]} 36. Rb1 {[%emt 0:05:06]} Bc4 {[%emt 0:03:18]} 37. Rb8 {[%emt 0:03:24]} Bxf6 {[%emt 0:01:15]} 38. exf6 {[%emt 0:00:05]} Qf7 {[%emt 0:00:20]} 39. Rxg8+ {[%emt 0:01:37]} Kxg8 {[%emt 0:00:31]} 40. Qg4+ {[%emt 0:00:00]} Kh8 {[%emt 0:00:00]} 41. Be5 {[%emt 0:10:15]} h5 {[%emt 0:01:40]} 42. Qd1 {[%emt 0:01:21]} Bb5 {[%emt 0:01:25]} 43. Qb3 {[%emt 0:15:20]} Be8 {[%emt 0:00:06]} 44. Qb8 {[%emt 0:02:58]} Kh7 {[%emt 0:00:10]} 45. g4 {[%emt 0:00:44]} hxg4 {[%emt 0:01:09]} 46. hxg4 {[%emt 0:00:02]} a4 {[%emt 0:01:02]} 47. Kg3 {[%emt 0:00:13]} Kg6 {[%emt 0:02:06]} 48. Qd6 {[%emt 0:02:00]} Kh7 {[%emt 0:00:38]} 49. Qb8 {[%emt 0:02:16]} Kg6 {[%emt 0:00:18]} 50. Qd8 {[%emt 0:00:30]} Kh7 {[%emt 0:01:06]} 51. g5 {[%emt 0:04:06]} Qh5 {[%emt 0:01:34]} 52. Qe7+ {[%emt 0:02:37]} Bf7 {[%emt 0:00:10]} 53. Bf4 {[%emt 0:00:18]} Qf3+ {[%emt 0:00:30]} 54. Kh2 {[%emt 0:00:51]} 1/2-1/2

[Event "Cracovia Festival-A 2023"]
[Site "Krakow"]
[Date "2024.01.04"]
[Round "9.19"]
[White "Balint, Peter"]
[Black "Lukasiewicz, Krzysztof"]
[Result "0-1"]
[ECO "B12"]
[WhiteElo "2187"]
[BlackElo "2290"]
[Annotator "RC"]
[PlyCount "72"]
[EventDate "2023.12.24"]
[EventType "swiss"]
[EventCountry "POL"]
[SourceTitle "playchess.com"]
[Source "ChessBase"]
[SourceQuality "1"]
[TimeControl "40/5400+30:1800+30"]

1. e4 {[%emt 0:00:01]} c6 {[%emt 0:07:50]} 2. d4 {[%emt 0:00:04]} d5 {[%emt 0:00:04]} 3. e5 {[%emt 0:00:05]} Bf5 {[%emt 0:00:31]} 4. h4 {[%emt 0:00:14]} h5 {[%emt 0:00:06]} 5. c4 {[%emt 0:00:05]} e6 {[%emt 0:00:39]} 6. Nc3 {[%emt 0:00:05]} dxc4 {[%emt 0:01:18]} 7. Bxc4 {[%emt 0:01:18]} Nd7 {[%emt 0:00:09]} 8. Nge2 {[%emt 0:02:01]} Nb6 {[%emt 0:03:01]} 9. Bd3 {[%emt 0:03:10]} Ne7 {[%emt 0:01:54]} 10. Bg5 {[%emt 0:02:59]} Bxd3 {[%emt 0:00:22]} 11. Qxd3 {[%emt 0:00:11]} Qd7 {[%emt 0:00:05]} 12. Rd1 {[%emt 0:10:41]} Nf5 {[%emt 0:12:20]} 13. Ng3 {[%emt 0:11:41]} Nxg3 {[%emt 0:00:59]} 14. Qxg3 {[%emt 0:01:35]} Bb4 {[%emt 0:00:10]} 15. O-O {[%emt 0:01:46]} Bxc3 {[%emt 0:00:33]} 16. bxc3 {[%emt 0:00:05]} Qd5 {[%emt 0:00:21]} 17. f4 {[%emt 0:01:18]} g6 {[%emt 0:05:15]} 18. f5 {[%emt 0:04:07]} gxf5 {[%emt 0:04:54]} 19. Bf6 {[%emt 0:00:06]} Rf8 {[%emt 0:00:04]} 20. Qg5 {[%emt 0:00:35]} Kd7 {[%emt 0:02:19]} 21. Qxh5 {[%emt 0:00:13]} Qxa2 {[%emt 0:06:35]} 22. Bg7 {[%emt 0:09:32]} Rfe8 {[%emt 0:00:12]} 23. Qg5 {[%emt 0:00:30]} Nd5 {[%emt 0:03:55]} 24. h5 {[%emt 0:02:15]} Nxc3 {[%emt 0:01:28]} 25. Rde1 {[%emt 0:00:27]} Qc4 {[%emt 0:09:18]} 26. h6 {[%emt 0:02:30]} Qxd4+ {[%emt 0:08:57]} 27. Kh2 {[%emt 0:01:35]} Kc7 {[%emt 0:02:34]} 28. h7 {[%emt 0:05:00]} Rh8 {[%emt 0:01:55]} 29. Qh5 {[%emt 0:07:52]} b5 {[%emt 0:00:35]} 30. Rf3 {[%emt 0:07:12]} Kb6 {[%emt 0:03:39]} 31. Ree3 {[%emt 0:03:36]} Nd5 {[%emt 0:03:10]} 32. Rd3 {[%emt 0:00:41]} Qg4 {[%emt 0:02:22]} 33. Qxg4 {[%emt 0:05:56]} fxg4 {[%emt 0:00:07]} 34. Bxh8 {[%emt 0:00:05]} gxf3 {[%emt 0:00:49]} 35. Bg7 {[%emt 0:00:08]} f2 {[%emt 0:00:18]} 36. Rf3 {[%emt 0:02:41]} Ne3 {[%emt 0:00:05]} 0-1

[Event "Cracovia Festival-A 2023"]
[Site "Krakow"]
[Date "2024.01.04"]
[Round "9.20"]
[White "Antolak, Julia"]
[Black "Nemsadze, Daviti"]
[Result "1-0"]
[ECO "B40"]
[WhiteElo "2287"]
[BlackElo "2253"]
[Annotator "RC"]
[PlyCount "63"]
[EventDate "2023.12.24"]
[EventType "swiss"]
[EventCountry "POL"]
[SourceTitle "playchess.com"]
[Source "ChessBase"]
[SourceQuality "1"]
[TimeControl "40/5400+30:1800+30"]

1. e4 {[%emt 0:00:48]} c5 {[%emt 0:00:50]} 2. Nf3 {[%emt 0:00:08]} e6 {[%emt 0:00:06]} 3. g3 {[%emt 0:00:03]} Nc6 {[%emt 0:00:20]} 4. Bg2 {[%emt 0:00:06]} Nf6 {[%emt 0:00:04]} 5. d3 {[%emt 0:00:14]} Be7 {[%emt 0:01:41]} 6. O-O {[%emt 0:00:38]} e5 {[%emt 0:05:08]} 7. Re1 {[%emt 0:02:19]} O-O {[%emt 0:02:58]} 8. Nbd2 {[%emt 0:00:14]} d6 {[%emt 0:01:10]} 9. Nf1 {[%emt 0:01:06]} Re8 {[%emt 0:00:32]} 10. h3 {[%emt 0:03:21]} Bf8 {[%emt 0:14:28]} 11. c3 {[%emt 0:06:25]} b5 {[%emt 0:06:29]} 12. d4 {[%emt 0:05:00]} exd4 {[%emt 0:11:54]} 13. cxd4 {[%emt 0:00:06]} c4 {[%emt 0:05:44]} 14. e5 {[%emt 0:08:28]} Nd5 {[%emt 0:04:23]} 15. Ng5 {[%emt 0:05:16]} Be6 {[%emt 0:02:57]} 16. Qh5 {[%emt 0:11:55]} h6 {[%emt 0:00:45]} 17. Nxe6 {[%emt 0:06:41]} fxe6 {[%emt 0:00:41]} 18. Ne3 {[%emt 0:01:05]} Nxd4 {[%emt 0:01:31]} 19. Nxd5 {[%emt 0:00:48]} exd5 {[%emt 0:00:04]} 20. Bxd5+ {[%emt 0:00:56]} Kh8 {[%emt 0:00:55]} 21. Qf7 {[%emt 0:04:05]} Be7 {[%emt 0:00:22]} 22. Bxh6 {[%emt 0:00:38]} gxh6 {[%emt 0:00:10]} 23. Be4 {[%emt 0:00:10]} Nf3+ {[%emt 0:00:12]} 24. Qxf3 {[%emt 0:00:17]} d5 {[%emt 0:00:57]} 25. Bxd5 {[%emt 0:02:52]} Rf8 {[%emt 0:00:09]} 26. Qe4 {[%emt 0:00:54]} Rb8 {[%emt 0:01:07]} 27. Kg2 {[%emt 0:01:28]} Qb6 {[%emt 0:00:16]} 28. f4 {[%emt 0:00:30]} Rbc8 {[%emt 0:02:34]} 29. f5 {[%emt 0:02:19]} c3 {[%emt 0:01:33]} 30. bxc3 {[%emt 0:00:22]} Rxc3 {[%emt 0:00:11]} 31. f6 {[%emt 0:00:29]} Bd8 {[%emt 0:02:16]} 32. Qg6 {[%emt 0:00:36]} 1-0